[Event "23rd Hoogeveen Open 2019"]
[Site "Hoogeveen"]
[Date "2019.10.19"]
[Round "1.15"]
[White "Pekin, Tolgay"]
[Black "Morozov, Nichita"]
[Result "0-1"]
[ECO "B24"]
[WhiteElo "2083"]
[BlackElo "2394"]
[Annotator "NA"]
[PlyCount "53"]
[EventDate "2019.10.19"]
[EventType "swiss"]
[EventCountry "NED"]
[SourceTitle "playchess.com"]
[Source "ChessBase"]
[SourceQuality "1"]
[TimeControl "40/5400+30:1800+30"]

1. e4 {[%emt 0:00:39]} g6 {[%emt 0:00:00]} 2. Nc3 {[%emt 0:00:50]} Bg7 {[%emt 0:00:00]} 3. g3 {[%emt 0:00:06]} c5 {[%emt 0:01:43]} 4. Bg2 {[%emt 0:00:12]} Nc6 {[%emt 0:00:04]} 5. d3 {[%emt 0:00:12]} e6 {[%emt 0:01:19]} 6. Be3 {[%emt 0:01:00]} Nd4 {[%emt 0:01:15]} 7. Nce2 {[%emt 0:01:21]} e5 {[%emt 0:01:34]} 8. c3 {[%emt 0:00:49]} Ne6 {[%emt 0:00:03]} 9. Nh3 {[%emt 0:03:21]} Ne7 {[%emt 0:01:59]} 10. d4 {[%emt 0:07:41]} exd4 {[%emt 0:03:46]} 11. cxd4 {[%emt 0:00:14]} d5 {[%emt 0:01:24]} 12. Nhf4 {[%emt 0:21:23]} dxe4 {[%emt 0:05:26]} 13. dxc5 {[%emt 0:08:53]} Qxd1+ {[%emt 0:15:41]} 14. Rxd1 {[%emt 0:00:46]} f5 {[%emt 0:01:55]} 15. b3 {[%emt 0:03:48]} Nc6 {[%emt 0:04:47]} 16. O-O {[%emt 0:08:30]} Nxf4 {[%emt 0:03:10]} 17. Nxf4 {[%emt 0:01:15]} Bd7 {[%emt 0:00:12]} 18. f3 {[%emt 0:05:35]} exf3 {[%emt 0:00:39]} 19. Bxf3 {[%emt 0:00:06]} O-O-O {[%emt 0:00:47]} 20. Nd5 {[%emt 0:03:29]} Be6 {[%emt 0:03:41]} 21. Rfe1 {[%emt 0:06:03]} Rd7 {[%emt 0:02:04]} 22. Bf2 {[%emt 0:06:34]} Ne5 {[%emt 0:01:29]} 23. Bg2 {[%emt 0:03:17]} Rhd8 {[%emt 0:00:40]} 24. Nc3 {[%emt 0:04:09]} Rd6 {[%emt 0:00:35]} 25. Rd2 Rxd2 {[%emt 0:00:31]} 26. Rd1 {[%emt 0:01:50]} Rxd1+ {[%emt 0:00:37]} 27. Nxd1 {[%emt 0:00:03]} 0-1

[Event "23rd Hoogeveen Open 2019"]
[Site "Hoogeveen"]
[Date "2019.10.19"]
[Round "1.16"]
[White "Jonkman, Harmen"]
[Black "Faber, Hugo"]
[Result "1-0"]
[ECO "C02"]
[WhiteElo "2383"]
[BlackElo "2077"]
[Annotator "NA"]
[PlyCount "115"]
[EventDate "2019.10.19"]
[EventType "swiss"]
[EventCountry "NED"]
[SourceTitle "playchess.com"]
[Source "ChessBase"]
[SourceQuality "1"]
[TimeControl "40/5400+30:1800+30"]

1. e4 {[%emt 0:00:00]} e6 {[%emt 0:00:00]} 2. d4 {[%emt 0:00:00]} d5 {[%emt 0:00:11]} 3. e5 {[%emt 0:00:11]} c5 {[%emt 0:00:23]} 4. c3 {[%emt 0:00:07]} Nc6 {[%emt 0:00:36]} 5. Nf3 {[%emt 0:00:39]} Bd7 {[%emt 0:00:36]} 6. Be2 {[%emt 0:06:37]} Rc8 {[%emt 0:02:19]} 7. O-O {[%emt 0:04:07]} Nge7 {[%emt 0:02:30]} 8. Na3 {[%emt 0:15:59]} cxd4 {[%emt 0:08:58]} 9. cxd4 {[%emt 0:00:45]} Nf5 {[%emt 0:01:36]} 10. Nc2 {[%emt 0:00:06]} Be7 {[%emt 0:09:42]} 11. Bd3 {[%emt 0:21:03]} h5 {[%emt 0:07:49]} 12. b4 {[%emt 0:12:35]} g5 {[%emt 0:10:35]} 13. b5 {[%emt 0:00:51]} Na5 {[%emt 0:00:16]} 14. Ne3 {[%emt 0:06:24]} Nxe3 {[%emt 0:05:43]} 15. fxe3 {[%emt 0:01:06]} g4 {[%emt 0:04:55]} 16. Ne1 {[%emt 0:05:59]} Nc4 {[%emt 0:11:53]} 17. a4 {[%emt 0:00:39]} Bg5 {[%emt 0:07:59]} 18. Qe2 {[%emt 0:03:18]} Rg8 {[%emt 0:01:31]} 19. g3 {[%emt 0:05:00]} h4 {[%emt 0:05:41]} 20. Ng2 {[%emt 0:03:50]} hxg3 {[%emt 0:00:36]} 21. hxg3 {[%emt 0:00:02]} a6 {[%emt 0:09:38]} 22. bxa6 {[%emt 0:01:24]} bxa6 {[%emt 0:00:06]} 23. Ra2 {[%emt 0:00:04]} Qb6 {[%emt 0:02:06]} 24. Qd1 {[%emt 0:01:08]} Qb4 {[%emt 0:01:46]} 25. Raf2 {[%emt 0:01:07]} Bxa4 {[%emt 0:00:26]} 26. Qxg4 {[%emt 0:00:14]} Nxe5 {[%emt 0:00:13]} 27. Qh5 {[%emt 0:00:50]} Nxd3 {[%emt 0:02:40]} 28. Qxf7+ {[%emt 0:00:54]} Kd8 {[%emt 0:00:06]} 29. Qxg8+ {[%emt 0:00:37]} Kd7 {[%emt 0:00:24]} 30. Qh7+ {[%emt 0:07:23]} Be7 {[%emt 0:00:25]} 31. Bd2 {[%emt 0:00:24]} Qa3 {[%emt 0:01:25]} 32. Rf7 {[%emt 0:00:33]} Re8 {[%emt 0:00:04]} 33. e4 {[%emt 0:00:16]} Qb2 {[%emt 0:00:34]} 34. Be3 {[%emt 0:00:49]} dxe4 {[%emt 0:00:54]} 35. Qg7 {[%emt 0:00:37]} Nb4 {[%emt 0:01:31]} 36. Nf4 {[%emt 0:00:17]} Qb3 {[%emt 0:00:32]} 37. Bc1 {[%emt 0:00:41]} Bc6 {[%emt 0:00:52]} 38. Nh5 {[%emt 0:00:20]} Nd5 {[%emt 0:00:18]} 39. Bg5 {[%emt 0:00:41]} Bb5 {[%emt 0:00:06]} 40. Bxe7 {[%emt 0:00:45]} Qe3+ {[%emt 0:00:13]} 41. Kh1 {[%emt 0:14:31]} Rxe7 {[%emt 0:01:47]} 42. Nf6+ {[%emt 0:02:04]} Kc6 {[%emt 0:08:28]} 43. Nxd5 {[%emt 0:00:30]} Rxf7 {[%emt 0:00:26]} 44. Nb4+ {[%emt 0:00:27]} Kb6 {[%emt 0:00:28]} 45. Qxf7 {[%emt 0:00:23]} Bxf1 {[%emt 0:01:09]} 46. Qxf1 {[%emt 0:00:27]} Qh6+ {[%emt 0:01:15]} 47. Kg1 {[%emt 0:00:50]} Qe3+ {[%emt 0:00:18]} 48. Qf2 {[%emt 0:00:11]} Qc1+ {[%emt 0:00:14]} 49. Kg2 {[%emt 0:05:37]} e3 {[%emt 0:00:45]} 50. Qf8 {[%emt 0:01:45]} Qd2+ {[%emt 0:01:30]} 51. Kh3 {[%emt 0:02:22]} e2 {[%emt 0:01:23]} 52. Qc5+ {[%emt 0:00:45]} Kb7 {[%emt 0:00:06]} 53. Qc6+ {[%emt 0:00:16]} Kb8 {[%emt 0:00:27]} 54. Qb6+ {[%emt 0:01:32]} Kc8 {[%emt 0:00:25]} 55. Qxe6+ {[%emt 0:00:50]} Kb7 {[%emt 0:01:04]} 56. Qc6+ {[%emt 0:00:59]} Kb8 {[%emt 0:00:16]} 57. Nxa6+ {[%emt 0:00:35]} Ka7 {[%emt 0:00:04]} 58. Nc5 {[%emt 0:01:12]} 1-0

[Event "23rd Hoogeveen Open 2019"]
[Site "Hoogeveen"]
[Date "2019.10.19"]
[Round "1.17"]
[White "Stock, Andreas"]
[Black "Vestby-Ellingsen, Mads"]
[Result "0-1"]
[ECO "A36"]
[WhiteElo "2076"]
[BlackElo "2363"]
[Annotator "NA RC"]
[PlyCount "54"]
[EventDate "2019.10.19"]
[EventType "swiss"]
[EventCountry "NED"]
[SourceTitle "playchess.com"]
[Source "ChessBase"]
[SourceQuality "1"]
[TimeControl "40/5400+30:1800+30"]

1. c4 {[%emt 0:00:00]} c5 {[%emt 0:00:00]} 2. Nc3 {[%emt 0:00:00]} g6 {[%emt 0:00:24]} 3. g3 {[%emt 0:00:07]} Bg7 {[%emt 0:00:13]} 4. Bg2 {[%emt 0:00:06]} Nc6 {[%emt 0:00:11]} 5. e4 {[%emt 0:00:12]} d6 {[%emt 0:00:18]} 6. Nge2 {[%emt 0:00:07]} e6 {[%emt 0:00:15]} 7. O-O {[%emt 0:00:10]} Nge7 {[%emt 0:00:14]} 8. d3 {[%emt 0:00:20]} O-O {[%emt 0:00:16]} 9. Be3 {[%emt 0:01:05]} Nd4 {[%emt 0:00:18]} 10. Rb1 {[%emt 0:00:16]} Nec6 {[%emt 0:10:20]} 11. a3 {[%emt 0:00:09]} Rb8 {[%emt 0:05:54]} 12. b4 {[%emt 0:04:30]} b6 {[%emt 0:05:06]} 13. bxc5 {[%emt 0:05:56]} dxc5 {[%emt 0:00:59]} 14. Bf4 {[%emt 0:07:14]} Rb7 {[%emt 0:17:24]} 15. Nxd4 {[%emt 0:04:04]} Nxd4 {[%emt 0:01:31]} 16. Qd2 {[%emt 0:13:15]} Rd7 {[%emt 0:04:13]} 17. e5 {[%emt 0:07:57]} Nf3+ {[%emt 0:07:27]} 18. Bxf3 {[%emt 0:00:18]} Rxd3 {[%emt 0:00:12]} 19. Qc1 {[%emt 0:14:48]} Rxf3 {[%emt 0:00:23]} 20. Ne4 {[%emt 0:02:57]} Bb7 {[%emt 0:06:06]} 21. Nxc5 {[%emt 0:09:24]} Ba8 {[%emt 0:00:28]} 22. Rd1 {[%emt 0:02:50]} Qc8 {[%emt 0:00:52]} 23. Nd3 {[%emt 0:04:38]} Qc6 {[%emt 0:01:30]} 24. Kf1 {[%emt 0:00:41]} g5 {[%emt 0:14:11]} 25. Bxg5 {[%emt 0:02:23]} Rf5 {[%emt 0:00:21]} 26. Ke1 {[%emt 0:11:48]} Qe4+ {[%emt 0:05:55]} 27. Qe3 {[%emt 0:00:46]} Rxg5 {[%emt 0:01:05]} 0-1

[Event "23rd Hoogeveen Open 2019"]
[Site "Hoogeveen"]
[Date "2019.10.19"]
[Round "1.18"]
[White "Dixit, Nikhil"]
[Black "Boersma, Jan"]
[Result "1-0"]
[ECO "B27"]
[WhiteElo "2358"]
[BlackElo "2070"]
[Annotator "NA"]
[PlyCount "33"]
[EventDate "2019.10.19"]
[EventType "swiss"]
[EventCountry "NED"]
[SourceTitle "playchess.com"]
[Source "ChessBase"]
[SourceQuality "1"]
[TimeControl "40/5400+30:1800+30"]

1. e4 {[%emt 0:00:00]} c5 {[%emt 0:00:00]} 2. Nf3 {[%emt 0:00:58]} g6 {[%emt 0:00:00]} 3. d4 {[%emt 0:00:08]} cxd4 {[%emt 0:00:00]} 4. Qxd4 {[%emt 0:00:05]} Nf6 {[%emt 0:00:00]} 5. Bb5 {[%emt 0:00:07]} Nc6 {[%emt 0:00:16]} 6. Bxc6 {[%emt 0:00:13]} dxc6 {[%emt 0:00:06]} 7. Qxd8+ {[%emt 0:01:41]} Kxd8 {[%emt 0:00:04]} 8. Nc3 {[%emt 0:03:07]} Bg7 {[%emt 0:00:12]} 9. Bf4 {[%emt 0:01:18]} Be6 {[%emt 0:03:21]} 10. Be5 {[%emt 0:10:20]} Nh5 {[%emt 0:03:18]} 11. O-O-O+ {[%emt 0:05:45]} Kc8 {[%emt 0:01:02]} 12. Bxg7 {[%emt 0:01:53]} Nxg7 {[%emt 0:00:06]} 13. Rd2 {[%emt 0:00:51]} Kc7 {[%emt 0:00:07]} 14. Rhd1 {[%emt 0:00:52]} Rad8 {[%emt 0:02:03]} 15. Nd4 {[%emt 0:06:06]} Bc8 {[%emt 0:03:30]} 16. Ndb5+ {[%emt 0:00:54]} cxb5 {[%emt 0:00:53]} 17. Nxb5+ {[%emt 0:00:38]} 1-0

[Event "23rd Hoogeveen Open 2019"]
[Site "Hoogeveen"]
[Date "2019.10.19"]
[Round "1.19"]
[White "Stavast, Dick"]
[Black "Manush Shah"]
[Result "1/2-1/2"]
[ECO "A12"]
[WhiteElo "2068"]
[BlackElo "2352"]
[Annotator "NA"]
[PlyCount "139"]
[EventDate "2019.10.19"]
[EventType "swiss"]
[EventCountry "NED"]
[SourceTitle "playchess.com"]
[Source "ChessBase"]
[SourceQuality "1"]
[TimeControl "40/5400+30:1800+30"]

1. Nf3 {[%emt 0:00:00]} d5 {[%emt 0:00:26]} 2. c4 {[%emt 0:00:11]} c6 {[%emt 0:00:10]} 3. e3 {[%emt 0:01:55]} Nf6 {[%emt 0:00:09]} 4. b3 {[%emt 0:01:10]} Bf5 {[%emt 0:02:25]} 5. Bb2 {[%emt 0:00:46]} e6 {[%emt 0:00:33]} 6. Nc3 {[%emt 0:02:54]} Nbd7 {[%emt 0:00:34]} 7. Be2 {[%emt 0:04:58]} h6 {[%emt 0:00:53]} 8. O-O {[%emt 0:01:34]} Bd6 {[%emt 0:01:01]} 9. d3 {[%emt 0:02:44]} Qe7 {[%emt 0:07:36]} 10. Rc1 {[%emt 0:14:19]} O-O {[%emt 0:03:22]} 11. Qd2 {[%emt 0:02:20]} Rad8 {[%emt 0:07:54]} 12. Rfe1 {[%emt 0:05:57]} a6 {[%emt 0:08:06]} 13. Bf1 {[%emt 0:11:01]} Bg4 {[%emt 0:03:49]} 14. Be2 {[%emt 0:04:28]} e5 {[%emt 0:02:47]} 15. h3 {[%emt 0:04:20]} Bf5 {[%emt 0:10:54]} 16. cxd5 {[%emt 0:04:24]} cxd5 {[%emt 0:00:18]} 17. d4 {[%emt 0:03:13]} e4 {[%emt 0:00:47]} 18. Nh2 {[%emt 0:00:06]} Rfe8 {[%emt 0:01:35]} 19. Rc2 {[%emt 0:05:51]} Nf8 {[%emt 0:04:24]} 20. Rec1 {[%emt 0:00:47]} Qd7 {[%emt 0:04:14]} 21. Bf1 {[%emt 0:05:52]} Ng6 {[%emt 0:05:13]} 22. Ne2 {[%emt 0:01:20]} Nh4 {[%emt 0:03:05]} 23. Ng3 {[%emt 0:01:17]} Be6 {[%emt 0:01:36]} 24. Qa5 {[%emt 0:02:05]} Qe7 {[%emt 0:02:58]} 25. a3 {[%emt 0:01:32]} Nd7 {[%emt 0:03:35]} 26. Ng4 {[%emt 0:13:27]} Bxg4 {[%emt 0:01:47]} 27. hxg4 {[%emt 0:00:03]} Qg5 {[%emt 0:00:20]} 28. Qe1 {[%emt 0:01:37]} Qxg4 {[%emt 0:00:24]} 29. Qe2 {[%emt 0:01:23]} Qg5 {[%emt 0:01:05]} 30. Qh5 {[%emt 0:00:33]} f5 {[%emt 0:03:36]} 31. b4 {[%emt 0:01:43]} g6 {[%emt 0:02:06]} 32. Qxg5 {[%emt 0:00:28]} hxg5 {[%emt 0:00:01]} 33. Ne2 {[%emt 0:00:26]} Nb6 {[%emt 0:01:21]} 34. Nc3 {[%emt 0:00:50]} Kf7 {[%emt 0:01:52]} 35. Nd1 {[%emt 0:01:23]} Ke6 {[%emt 0:02:31]} 36. Bc3 {[%emt 0:00:11]} Rc8 {[%emt 0:03:55]} 37. b5 {[%emt 0:00:35]} Nc4 {[%emt 0:03:23]} 38. bxa6 {[%emt 0:00:43]} bxa6 {[%emt 0:03:12]} 39. Bxc4 {[%emt 0:00:19]} Rxc4 {[%emt 0:00:12]} 40. Bb4 {[%emt 0:00:32]} Rec8 {[%emt 0:01:11]} 41. Rxc4 {[%emt 0:30:06]} Rxc4 {[%emt 0:30:13]} 42. Rxc4 {[%emt 0:00:00]} dxc4 {[%emt 0:08:08]} 43. Bxd6 {[%emt 0:00:00]} Kxd6 {[%emt 0:00:00]} 44. Nc3 {[%emt 0:00:00]} g4 {[%emt 0:00:00]} 45. Kf1 {[%emt 0:00:00]} g5 {[%emt 0:00:00]} 46. g3 {[%emt 0:00:00]} Ng6 {[%emt 0:00:00]} 47. Ke2 {[%emt 0:00:00]} Ne7 {[%emt 0:00:00]} 48. Kd2 {[%emt 0:00:00]} Kc6 {[%emt 0:00:00]} 49. Kc2 {[%emt 0:00:00]} Nc8 {[%emt 0:00:00]} 50. Kb2 {[%emt 0:00:00]} Nd6 {[%emt 0:00:00]} 51. Kc2 {[%emt 0:00:00]} Kd7 {[%emt 0:00:00]} 52. Kd2 {[%emt 0:00:00]} Ke6 {[%emt 0:00:00]} 53. Kc2 {[%emt 0:00:00]} Nb7 {[%emt 0:00:00]} 54. Kb2 {[%emt 0:00:00]} Nd6 {[%emt 0:00:00]} 55. Kc2 {[%emt 0:00:00]} f4 {[%emt 0:00:00]} 56. Kd2 {[%emt 0:00:00]} fxg3 {[%emt 0:00:00]} 57. fxg3 {[%emt 0:00:00]} Nf5 {[%emt 0:00:00]} 58. Nxe4 {[%emt 0:00:00]} Kd5 {[%emt 0:00:00]} 59. Nf6+ {[%emt 0:00:00]} Ke6 {[%emt 0:00:00]} 60. Nxg4 {[%emt 0:00:00]} Nxg3 {[%emt 0:00:00]} 61. Kc3 {[%emt 0:00:00]} Kf5 {[%emt 0:00:00]} 62. Nf2 {[%emt 0:00:00]} Ne4+ {[%emt 0:00:00]} 63. Nxe4 {[%emt 0:00:00]} Kxe4 {[%emt 0:00:00]} 64. Kxc4 {[%emt 0:00:00]} g4 {[%emt 0:00:00]} 65. d5 {[%emt 0:00:00]} Ke5 {[%emt 0:00:00]} 66. Kc5 {[%emt 0:00:23]} g3 {[%emt 0:00:00]} 67. d6 {[%emt 0:00:02]} g2 {[%emt 0:00:00]} 68. d7 {[%emt 0:00:03]} g1=Q {[%emt 0:00:00]} 69. d8=Q {[%emt 0:00:03]} Qxe3+ {[%emt 0:00:00]} 70. Kb4 {[%emt 0:00:14]} 1/2-1/2

[Event "23rd Hoogeveen Open 2019"]
[Site "Hoogeveen"]
[Date "2019.10.19"]
[Round "1.20"]
[White "De Jong, Migchiel"]
[Black "Kirchei, Viktoriia"]
[Result "1-0"]
[ECO "C41"]
[WhiteElo "2330"]
[BlackElo "2051"]
[Annotator "NA"]
[PlyCount "55"]
[EventDate "2019.10.19"]
[EventType "swiss"]
[EventCountry "NED"]
[SourceTitle "playchess.com"]
[Source "ChessBase"]
[SourceQuality "1"]
[TimeControl "40/5400+30:1800+30"]

1. e4 {[%emt 0:00:00]} d6 {[%emt 0:00:00]} 2. d4 {[%emt 0:00:15]} Nf6 {[%emt 0:00:00]} 3. Nc3 {[%emt 0:00:22]} e5 {[%emt 0:00:23]} 4. Nf3 {[%emt 0:00:36]} Nbd7 {[%emt 0:00:08]} 5. Bc4 {[%emt 0:00:31]} Be7 {[%emt 0:00:19]} 6. O-O {[%emt 0:00:13]} O-O {[%emt 0:00:17]} 7. Re1 {[%emt 0:00:43]} a6 {[%emt 0:00:18]} 8. a4 {[%emt 0:00:53]} b6 {[%emt 0:00:06]} 9. Ne2 {[%emt 0:01:46]} Rb8 {[%emt 0:12:38]} 10. Ng3 {[%emt 0:01:32]} b5 {[%emt 0:00:15]} 11. Bd3 {[%emt 0:02:13]} c5 {[%emt 0:04:45]} 12. axb5 {[%emt 0:01:07]} axb5 {[%emt 0:01:07]} 13. c3 {[%emt 0:00:19]} Ne8 {[%emt 0:02:38]} 14. Nf5 {[%emt 0:02:33]} Bf6 {[%emt 0:02:39]} 15. b4 {[%emt 0:05:17]} c4 {[%emt 0:01:55]} 16. Bc2 {[%emt 0:01:50]} Bb7 {[%emt 0:09:40]} 17. g4 {[%emt 0:02:15]} g6 {[%emt 0:04:45]} 18. Nh6+ {[%emt 0:00:19]} Kh8 {[%emt 0:00:10]} 19. Be3 {[%emt 0:02:27]} Bg7 {[%emt 0:01:52]} 20. Ra7 {[%emt 0:03:09]} Nef6 {[%emt 0:04:06]} 21. dxe5 {[%emt 0:03:54]} dxe5 {[%emt 0:01:01]} 22. Qd6 {[%emt 0:00:29]} Qe8 {[%emt 0:11:07]} 23. Rd1 {[%emt 0:00:41]} Qe6 {[%emt 0:05:44]} 24. Ng5 {[%emt 0:01:07]} Qe8 {[%emt 0:02:25]} 25. Ngxf7+ {[%emt 0:05:05]} Rxf7 {[%emt 0:00:08]} 26. Nxf7+ {[%emt 0:00:09]} Qxf7 {[%emt 0:00:04]} 27. g5 {[%emt 0:00:09]} Nxe4 {[%emt 0:09:09]} 28. Bxe4 {[%emt 0:00:18]} 1-0

[Event "23rd Hoogeveen Open 2019"]
[Site "Hoogeveen"]
[Date "2019.10.19"]
[Round "1.21"]
[White "Fehr, Axel"]
[Black "Moksh Amit Doshi"]
[Result "0-1"]
[ECO "B96"]
[WhiteElo "2045"]
[BlackElo "2328"]
[Annotator "NA"]
[PlyCount "82"]
[EventDate "2019.10.19"]
[EventType "swiss"]
[EventCountry "NED"]
[SourceTitle "playchess.com"]
[Source "ChessBase"]
[SourceQuality "1"]
[TimeControl "40/5400+30:1800+30"]

1. e4 {[%emt 0:00:00]} c5 {[%emt 0:00:16]} 2. Nf3 {[%emt 0:00:00]} d6 {[%emt 0:00:10]} 3. d4 {[%emt 0:00:00]} cxd4 {[%emt 0:00:07]} 4. Nxd4 {[%emt 0:00:00]} Nf6 {[%emt 0:00:08]} 5. Nc3 {[%emt 0:00:00]} a6 {[%emt 0:00:06]} 6. Bg5 {[%emt 0:00:06]} e6 {[%emt 0:00:24]} 7. f4 {[%emt 0:00:06]} h6 {[%emt 0:00:35]} 8. Bh4 {[%emt 0:01:05]} Qb6 {[%emt 0:00:06]} 9. a3 {[%emt 0:01:44]} Be7 {[%emt 0:00:12]} 10. Bf2 {[%emt 0:00:39]} Qc7 {[%emt 0:00:08]} 11. Bd3 {[%emt 0:01:50]} e5 {[%emt 0:06:31]} 12. Nf5 {[%emt 0:09:50]} Bxf5 {[%emt 0:01:20]} 13. exf5 {[%emt 0:01:17]} Nbd7 {[%emt 0:04:21]} 14. Qf3 {[%emt 0:10:31]} Nc5 {[%emt 0:01:02]} 15. O-O-O {[%emt 0:08:03]} O-O {[%emt 0:01:24]} 16. g4 {[%emt 0:07:40]} exf4 {[%emt 0:06:44]} 17. h4 {[%emt 0:06:06]} Qc6 {[%emt 0:00:06]} 18. Qh3 {[%emt 0:12:48]} Rfc8 {[%emt 0:06:27]} 19. Bxc5 {[%emt 0:04:59]} Qxc5 {[%emt 0:00:28]} 20. g5 {[%emt 0:01:29]} Nh5 {[%emt 0:04:40]} 21. Rhe1 {[%emt 0:08:18]} d5 {[%emt 0:11:14]} 22. f6 {[%emt 0:05:23]} Bf8 {[%emt 0:01:19]} 23. Bf5 {[%emt 0:07:41]} Rd8 {[%emt 0:05:41]} 24. Re5 {[%emt 0:05:10]} Ng3 {[%emt 0:08:31]} 25. Nxd5 {[%emt 0:04:27]} Bd6 {[%emt 0:00:00]} 26. Ne7+ {[%emt 0:03:02]} Bxe7 {[%emt 0:00:00]} 27. Rxd8+ {[%emt 0:00:28]} Rxd8 {[%emt 0:00:00]} 28. Rxc5 {[%emt 0:00:18]} Ne2+ {[%emt 0:03:13]} 29. Kb1 {[%emt 0:00:06]} Rd1+ {[%emt 0:00:05]} 30. Ka2 {[%emt 0:00:07]} Nc1+ {[%emt 0:00:05]} 31. Kb1 {[%emt 0:00:25]} Bxc5 {[%emt 0:02:39]} 32. b4 {[%emt 0:00:38]} Ne2+ {[%emt 0:01:01]} 33. Ka2 {[%emt 0:00:24]} Bd4 {[%emt 0:00:49]} 34. Bd3 {[%emt 0:01:25]} Nc1+ {[%emt 0:00:14]} 35. Kb1 {[%emt 0:00:13]} Nxd3+ {[%emt 0:00:11]} 36. Ka2 {[%emt 0:00:06]} Nc1+ {[%emt 0:00:20]} 37. Kb1 {[%emt 0:00:05]} Ne2+ {[%emt 0:01:26]} 38. Ka2 {[%emt 0:00:10]} b5 {[%emt 0:00:25]} 39. c4 {[%emt 0:01:34]} Rd2+ {[%emt 0:00:33]} 40. Kb1 {[%emt 0:00:22]} Rb2+ {[%emt 0:00:09]} 41. Ka1 {[%emt 0:30:19]} Rb3+ {[%emt 0:30:08]} 0-1

[Event "23rd Hoogeveen Open 2019"]
[Site "Hoogeveen"]
[Date "2019.10.19"]
[Round "1.22"]
[White "Okkes, Menno"]
[Black "Van der Veen, Jan"]
[Result "1-0"]
[ECO "E94"]
[WhiteElo "2326"]
[BlackElo "2043"]
[Annotator "NA"]
[PlyCount "143"]
[EventDate "2019.10.19"]
[EventType "swiss"]
[EventCountry "NED"]
[SourceTitle "playchess.com"]
[Source "ChessBase"]
[SourceQuality "1"]
[TimeControl "40/5400+30:1800+30"]

1. Nf3 {[%emt 0:00:00]} Nf6 {[%emt 0:00:00]} 2. c4 {[%emt 0:00:00]} g6 {[%emt 0:00:54]} 3. Nc3 {[%emt 0:00:23]} Bg7 {[%emt 0:00:06]} 4. e4 {[%emt 0:00:16]} d6 {[%emt 0:00:08]} 5. d4 {[%emt 0:00:05]} O-O {[%emt 0:00:04]} 6. Be2 {[%emt 0:00:06]} e5 {[%emt 0:00:07]} 7. O-O {[%emt 0:00:07]} Na6 {[%emt 0:00:58]} 8. Be3 {[%emt 0:00:28]} Ng4 {[%emt 0:06:29]} 9. Bg5 {[%emt 0:00:09]} Qe8 {[%emt 0:00:59]} 10. h3 {[%emt 0:02:14]} h6 {[%emt 0:06:46]} 11. Bh4 {[%emt 0:03:02]} exd4 {[%emt 0:09:19]} 12. Nd5 {[%emt 0:33:40]} g5 {[%emt 0:15:40]} 13. hxg4 {[%emt 0:00:07]} gxh4 {[%emt 0:00:08]} 14. Nxd4 {[%emt 0:00:37]} Qxe4 {[%emt 0:14:06]} 15. Nf5 {[%emt 0:00:28]} Bxf5 {[%emt 0:06:02]} 16. gxf5 {[%emt 0:00:08]} c6 {[%emt 0:14:54]} 17. Bd3 {[%emt 0:20:14]} Qd4 {[%emt 0:01:09]} 18. f6 {[%emt 0:04:56]} Bxf6 {[%emt 0:06:47]} 19. Ne7+ {[%emt 0:00:13]} Kh8 {[%emt 0:01:09]} 20. Qh5 {[%emt 0:01:42]} Bg5 {[%emt 0:04:37]} 21. Rad1 {[%emt 0:01:14]} Nc5 {[%emt 0:06:24]} 22. Bb1 {[%emt 0:03:01]} Qf6 {[%emt 0:01:59]} 23. Nf5 {[%emt 0:00:54]} Bf4 {[%emt 0:01:47]} 24. g3 {[%emt 0:12:28]} Qg5 {[%emt 0:00:49]} 25. Qxh4 {[%emt 0:06:47]} Qxh4 {[%emt 0:00:27]} 26. Nxh4 {[%emt 0:00:03]} Be5 {[%emt 0:00:25]} 27. b3 {[%emt 0:00:27]} Rad8 {[%emt 0:00:32]} 28. Nf5 {[%emt 0:00:05]} h5 {[%emt 0:00:31]} 29. Kg2 {[%emt 0:00:09]} Ne6 {[%emt 0:00:21]} 30. f4 {[%emt 0:01:36]} Bf6 {[%emt 0:00:04]} 31. Nxd6 {[%emt 0:00:30]} Rd7 {[%emt 0:00:54]} 32. Ne4 {[%emt 0:02:37]} Rxd1 {[%emt 0:00:05]} 33. Rxd1 {[%emt 0:00:03]} Rd8 {[%emt 0:00:28]} 34. Rh1 {[%emt 0:02:12]} Kg7 {[%emt 0:00:01]} 35. Rxh5 {[%emt 0:00:21]} Be7 {[%emt 0:00:59]} 36. Rh1 {[%emt 0:02:17]} Nc5 {[%emt 0:00:40]} 37. Nf2 {[%emt 0:00:12]} a5 {[%emt 0:00:58]} 38. g4 {[%emt 0:02:02]} Rd2 {[%emt 0:00:30]} 39. Kf3 {[%emt 0:00:20]} Bf6 {[%emt 0:00:33]} 40. g5 {[%emt 0:01:00]} Bd4 {[%emt 0:00:35]} 41. Ng4 {[%emt 0:31:51]} Ne6 {[%emt 0:11:06]} 42. Bf5 {[%emt 0:00:00]} Nc5 {[%emt 0:10:23]} 43. Rh7+ {[%emt 0:00:00]} Kf8 {[%emt 0:00:07]} 44. Rh2 {[%emt 0:00:00]} Rxh2 {[%emt 0:02:31]} 45. Nxh2 {[%emt 0:00:00]} Ke7 {[%emt 0:02:55]} 46. Ng4 {[%emt 0:00:00]} Bc3 {[%emt 0:01:28]} 47. Ne3 {[%emt 0:00:00]} a4 {[%emt 0:01:39]} 48. Bc2 {[%emt 0:00:00]} axb3 {[%emt 0:00:17]} 49. axb3 {[%emt 0:00:00]} Ne6 {[%emt 0:00:22]} 50. Nf5+ {[%emt 0:00:00]} Kd7 {[%emt 0:00:08]} 51. Ke4 {[%emt 0:00:00]} Ba5 {[%emt 0:02:56]} 52. Ng3 {[%emt 0:00:00]} Bd2 {[%emt 0:01:35]} 53. Ne2 {[%emt 0:00:00]} Ke7 {[%emt 0:00:19]} 54. Ke5 {[%emt 0:00:00]} Be3 {[%emt 0:00:32]} 55. Bf5 {[%emt 0:00:00]} Nc5 {[%emt 0:00:17]} 56. b4 {[%emt 0:00:00]} Na6 {[%emt 0:00:11]} 57. b5 {[%emt 0:00:00]} cxb5 {[%emt 0:00:06]} 58. cxb5 {[%emt 0:00:00]} Nc7 {[%emt 0:00:30]} 59. Bd3 {[%emt 0:00:00]} Ne6 {[%emt 0:00:34]} 60. Bc4 {[%emt 0:00:00]} Nf8 {[%emt 0:00:47]} 61. Ke4 {[%emt 0:00:00]} Bd2 {[%emt 0:00:51]} 62. Kd3 {[%emt 0:00:09]} Ba5 {[%emt 0:00:35]} 63. Nd4 {[%emt 0:00:58]} Ng6 {[%emt 0:00:29]} 64. Ke4 {[%emt 0:01:31]} Bc7 {[%emt 0:00:46]} 65. f5 {[%emt 0:00:51]} Ne5 {[%emt 0:00:37]} 66. f6+ {[%emt 0:00:16]} Ke8 {[%emt 0:00:33]} 67. Bd5 {[%emt 0:01:10]} b6 {[%emt 0:00:23]} 68. Nf5 {[%emt 0:00:42]} Kf8 {[%emt 0:00:45]} 69. Nh6 {[%emt 0:02:04]} Bd6 {[%emt 0:00:16]} 70. Kf5 {[%emt 0:00:14]} Bc7 {[%emt 0:00:29]} 71. Ke4 {[%emt 0:04:07]} Nd7 {[%emt 0:00:24]} 72. Nxf7 {[%emt 0:00:35]} 1-0